bitfinex-derivatives/quotes_BTCF0:USTF0_20250922
["timestamp","ask_amount","ask_price","bid_price","bid_amount"]
[1758503315543,0.41902792,114480.0,114470.0,0.02337]
[1758503315740,0.75899046,114480.0,114470.0,0.0004]
[1758503315940,0.03586,114460.0,114450.0,0.02307]
[1758503316135,1.09742254,114460.0,114450.0,0.79515]
[1758503316338,1.09742254,114460.0,114450.0,0.86539]
[1758503316739,1.09742254,114460.0,114450.0,0.86579]
[1758503316942,0.75746,114460.0,114450.0,0.86579]
[1758503317546,0.75746,114460.0,114450.0,0.87079]
[1758503317942,0.75746,114460.0,114450.0,0.9581022]
[1758503319246,0.75746,114460.0,114450.0,0.9531022]
[1758503319447,0.75746,114460.0,114450.0,0.86579]
[1758503319448,0.75946,114460.0,114450.0,0.86579]
[1758503320241,0.75946,114460.0,114450.0,0.9531022]
[1758503320645,1.09942254,114460.0,114450.0,0.02307]
[1758503320846,1.09942254,114460.0,114450.0,0.86583]
[1758503321044,0.75946,114460.0,114450.0,0.86543]
[1758503321249,0.75946,114460.0,114450.0,0.86583]
[1758503321549,0.75746,114460.0,114450.0,0.9551422]
[1758503321849,0.75746,114460.0,114450.0,0.86783]
[1758503322049,0.75746,114460.0,114450.0,0.86583]
[1758503322246,0.75946,114460.0,114450.0,0.9531422]
[1758503323348,0.75946,114460.0,114450.0,0.9652922]
[1758503323836,0.75946,114460.0,114450.0,0.9531422]
[1758503324037,0.75946,114460.0,114450.0,0.02307]
[1758503324251,0.75946,114460.0,114450.0,0.86583]
[1758503324648,0.75746,114460.0,114450.0,0.86583]
[1758503324849,0.75746,114460.0,114450.0,0.86783]
[1758503325248,0.75746,114460.0,114450.0,0.86583]
[1758503325458,0.75746,114460.0,114450.0,0.86783]
[1758503325950,0.75746,114460.0,114450.0,0.02507]
[1758503326153,1.09742254,114460.0,114450.0,0.84516]
[1758503326453,1.09742254,114460.0,114450.0,0.86813]
[1758503326645,1.19292712,114460.0,114450.0,0.86773]
[1758503326851,0.90246,114460.0,114450.0,0.86813]
[1758503327055,1.12019356,114460.0,114450.0,0.86813]
[1758503327552,1.12019356,114460.0,114450.0,1.08586356]
[1758503327745,1.12019356,114460.0,114450.0,1.08386356]
[1758503327940,1.12219356,114460.0,114450.0,1.08386356]
[1758503328553,1.12219356,114460.0,114450.0,1.17117576]
[1758503330057,1.12219356,114460.0,114450.0,0.9534422]
[1758503330350,1.12219356,114460.0,114450.0,1.17117576]
[1758503330545,0.90446,114460.0,114450.0,1.18332576]
[1758503330743,0.74589,114460.0,114450.0,1.18332576]
[1758503330942,0.74589,114460.0,114450.0,1.43332576]
[1758503331148,0.38509,114460.0,114450.0,1.43332576]
[1758503331545,0.3628,114460.0,114450.0,1.43332576]
[1758503332549,0.3608,114460.0,114450.0,1.65605932]
[1758503332754,0.3608,114470.0,114460.0,0.1227178]
[1758503332951,0.3608,114470.0,114460.0,1.40094492]
[1758503332952,0.38309,114470.0,114460.0,1.40094492]
[1758503333350,0.38309,114470.0,114460.0,0.55818492]
[1758503333351,0.39666,114470.0,114460.0,0.55818492]
[1758503333553,0.61439356,114470.0,114460.0,0.02297]
[1758503333747,0.61439356,114470.0,114460.0,1.17072816]
[1758503334248,0.61439356,114470.0,114460.0,1.17172816]
[1758503334655,0.61439356,114470.0,114460.0,0.32800816]
[1758503334854,0.61439356,114470.0,114460.0,0.1112746]
[1758503335053,0.61439356,114470.0,114460.0,1.17172816]
[1758503335269,0.61439356,114470.0,114460.0,1.17072816]
[1758503335443,0.61439356,114470.0,114460.0,1.17172816]
[1758503335649,0.61439356,114470.0,114460.0,0.9539946]
[1758503335948,0.61439356,114470.0,114460.0,1.17172816]
[1758503336154,0.61439356,114470.0,114460.0,1.17212816]
[1758503336545,0.39666,114470.0,114460.0,1.18457816]
[1758503336750,0.61439356,114470.0,114460.0,1.18457816]
[1758503337057,1.00939356,114470.0,114460.0,0.86705]
[1758503337453,0.03543,114450.0,114440.0,0.02192]
[1758503337648,0.97376356,114450.0,114440.0,0.8661]
[1758503337855,0.97376356,114450.0,114440.0,0.8645]
[1758503338053,0.97376356,114450.0,114440.0,0.8649]
[1758503338649,0.97376356,114450.0,114440.0,0.02222]
[1758503338856,1.04360715,114450.0,114440.0,0.86586]
[1758503340563,1.1661431,114450.0,114440.0,0.86586]
[1758503340763,1.1661431,114450.0,114440.0,0.86486]
[1758503340964,1.1701431,114450.0,114440.0,0.0004]
[1758503341164,1.1701431,114450.0,114440.0,0.7012]
[1758503341367,1.1701431,114450.0,114430.0,0.84264]
[1758503341671,0.39623,114440.0,114430.0,0.86446]
[1758503342057,0.39623,114440.0,114430.0,0.9525874]
[1758503342870,0.39623,114440.0,114430.0,0.86526]
[1758503344467,0.73649951,114440.0,114430.0,0.86446]
[1758503344666,0.73649951,114440.0,114430.0,0.86486]
[1758503344865,0.39623,114440.0,114430.0,0.86486]
[1758503345268,0.39623,114440.0,114430.0,0.9521872]
[1758503345469,0.39623,114440.0,114430.0,0.9656372]
[1758503345863,0.3608,114440.0,114430.0,1.55590671]
[1758503346769,0.3608,114440.0,114430.0,1.2156372]
[1758503346974,0.3608,114440.0,114430.0,1.55590671]
[1758503347569,0.3608,114440.0,114430.0,1.2156372]
[1758503347766,0.3608,114440.0,114430.0,1.55990671]
[1758503348174,0.3608,114440.0,114430.0,1.2196372]
[1758503348381,0.3608,114440.0,114430.0,1.55990671]
[1758503348676,0.3608,114440.0,114430.0,1.55590671]
[1758503348977,0.3608,114460.0,114450.0,0.1215819]
[1758503349177,0.3608,114460.0,114450.0,1.30445141]
[1758503350768,0.3608,114460.0,114450.0,1.30441141]
[1758503350973,0.3608,114460.0,114450.0,0.46585141]
[1758503351168,0.3608,114460.0,114450.0,1.30841141]
[1758503352582,0.3608,114460.0,114450.0,1.23835518]
[1758503353277,0.3608,114460.0,114450.0,0.39579518]
[1758503353479,0.3648,114460.0,114450.0,1.23827518]
[1758503353781,0.3648,114460.0,114450.0,0.9680619]
[1758503353978,0.3648,114460.0,114450.0,0.9640619]
[1758503354179,0.3648,114460.0,114450.0,1.23427518]
[1758503355176,0.3648,114460.0,114450.0,1.48427518]
[1758503355680,0.38767,114460.0,114450.0,1.48423518]
[1758503355983,0.38767,114460.0,114450.0,1.2140219]
[1758503356284,0.3648,114460.0,114450.0,1.2140219]
[1758503356583,0.3648,114460.0,114450.0,1.48423518]
[1758503358280,0.3648,114460.0,114450.0,0.64179518]
[1758503358482,0.3648,114460.0,114450.0,1.48415518]
[1758503359185,0.3648,114460.0,114450.0,0.64179518]
[1758503359376,0.38767,114460.0,114450.0,1.48411518]
[1758503359888,0.3648,114460.0,114450.0,1.48411518]
[1758503360590,0.3648,114460.0,114450.0,1.39907196]
[1758503360881,0.3648,114460.0,114450.0,0.55675196]
[1758503361087,0.3648,114460.0,114450.0,1.39903196]
[1758503361280,0.3648,114460.0,114450.0,0.9638619]
[1758503361581,0.3648,114460.0,114450.0,1.39903196]
[1758503362475,0.3648,114460.0,114450.0,1.64903196]
[1758503364487,0.3648,114460.0,114450.0,0.80675196]
[1758503364990,0.3648,114460.0,114450.0,1.64891196]
[1758503367287,0.3648,114460.0,114450.0,1.39891196]
[1758503367486,0.3648,114460.0,114450.0,1.64891196]
[1758503367880,0.3648,114460.0,114450.0,0.80675196]
[1758503368081,0.3648,114460.0,114450.0,1.64879196]
[1758503369486,0.2152589,114460.0,114450.0,1.64879196]
[1758503369687,0.3608,114470.0,114460.0,0.1100743]
[1758503369990,0.3608,114470.0,114460.0,0.32765933]
[1758503370180,0.3608,114470.0,114460.0,0.57765933]
[1758503371087,0.3628,114470.0,114460.0,0.57765933]
[1758503372086,0.3678,114470.0,114460.0,0.57765933]
[1758503372287,0.3678,114470.0,114460.0,1.41957933]
[1758503372884,0.3678,114470.0,114460.0,1.2019943]
[1758503373189,0.3678,114470.0,114460.0,1.41957933]
[1758503373790,0.3678,114470.0,114460.0,1.49763038]
[1758503374493,0.3678,114470.0,114460.0,1.71521541]
[1758503374993,0.3678,114470.0,114460.0,0.65571038]
[1758503375194,0.3678,114470.0,114460.0,1.76137038]
[1758503375983,0.3678,114470.0,114460.0,1.51137038]
[1758503376297,0.3638,114470.0,114460.0,1.51137038]
[1758503376890,0.3638,114470.0,114460.0,0.40571038]
[1758503377098,0.3638,114470.0,114460.0,1.16937933]
[1758503377390,0.3638,114470.0,114460.0,1.16969933]
[1758503378090,0.37751,114470.0,114460.0,1.16965933]
[1758503378283,0.65009,114470.0,114460.0,0.1104743]
[1758503378490,0.65009,114470.0,114460.0,1.16965933]
[1758503378688,0.65009,114470.0,114460.0,0.32805933]
[1758503378890,0.65009,114470.0,114460.0,1.16965933]
[1758503379089,0.65009,114470.0,114460.0,1.16925933]
[1758503379290,0.40009,114470.0,114460.0,1.16965933]
[1758503380094,0.3638,114470.0,114460.0,1.16965933]
[1758503381598,0.3638,114470.0,114460.0,1.24771038]
[1758503382100,0.3638,114470.0,114460.0,0.40611038]
[1758503382296,0.3638,114470.0,114460.0,1.16953933]
[1758503382493,0.3638,114470.0,114460.0,1.24719038]
[1758503382692,0.3638,114470.0,114460.0,1.24759038]
[1758503383501,0.3638,114470.0,114460.0,0.40611038]
[1758503383800,0.3638,114470.0,114460.0,1.24755038]
[1758503384004,0.3638,114470.0,114460.0,1.24715038]
[1758503384199,0.3638,114470.0,114460.0,1.24755038]
[1758503385098,0.3638,114470.0,114460.0,0.32805933]
[1758503385302,0.40009,114470.0,114460.0,1.16937933]
[1758503385497,0.40009,114470.0,114460.0,1.16897933]
[1758503385804,0.40009,114470.0,114460.0,1.16937933]
[1758503386203,0.40009,114470.0,114460.0,0.32805933]
[1758503386503,0.40009,114470.0,114460.0,1.16937933]
[1758503386504,0.3638,114470.0,114460.0,1.16937933]
[1758503387503,0.3289724,114470.0,114460.0,1.38696436]
[1758503387806,0.1464483,114470.0,114460.0,1.71501541]
[1758503388007,0.02119729,114490.0,114480.0,0.113109]
[1758503388304,0.00969115,114490.0,114480.0,1.38947906]
[1758503388606,0.00969115,114490.0,114480.0,1.22432797]
[1758503389508,0.00969115,114490.0,114480.0,3.06432797]
[1758503390201,0.00969115,114490.0,114480.0,2.22312797]
[1758503390407,0.01269115,114490.0,114480.0,3.14225902]
[1758503390704,0.02640115,114490.0,114480.0,1.950059]
[1758503390901,0.27640115,114490.0,114480.0,1.950059]
[1758503391103,0.27640115,114490.0,114480.0,2.791499]
[1758503391508,0.27640128,114490.0,114480.0,2.791459]
[1758503393206,0.27640128,114490.0,114480.0,1.950459]
[1758503393509,0.27640128,114490.0,114480.0,2.790979]
[1758503393713,0.27640128,114490.0,114480.0,2.791379]
[1758503393905,0.27640128,114490.0,114480.0,2.768569]
[1758503394106,0.27640128,114490.0,114480.0,2.768169]
[1758503394306,0.27640128,114490.0,114480.0,2.768569]
[1758503394914,0.27640128,114490.0,114480.0,2.68124]
[1758503395514,0.27640128,114490.0,114480.0,1.84]
[1758503395714,0.27640128,114490.0,114480.0,2.68124]
[1758503396013,0.27640128,114490.0,114480.0,2.7681289]
[1758503396718,0.27640145,114490.0,114480.0,2.7685289]
[1758503398218,0.29833145,114490.0,114480.0,0.9507589]
[1758503398417,0.29833145,114490.0,114480.0,0.9285289]
[1758503398719,0.29833145,114490.0,114480.0,0.9507589]
[1758503399818,0.29833145,114490.0,114480.0,0.86347]
[1758503400119,0.29833145,114490.0,114480.0,0.0004]
[1758503400312,0.56835042,114490.0,114480.0,0.0004]
[1758503400514,0.03557,114480.0,114470.0,0.0872964]
[1758503400714,0.03557,114480.0,114470.0,0.7990964]
[1758503400910,0.01364,114470.0,114460.0,0.0873032]
[1758503401218,0.30558897,114470.0,114460.0,0.9279032]
[1758503401417,0.30558897,114470.0,114450.0,1.84076]
[1758503401418,0.01364,114460.0,114450.0,1.9272668]
[1758503401620,0.01364,114460.0,114450.0,2.7678268]
[1758503401813,0.01364,114460.0,114450.0,1.9272668]
[1758503402013,0.01364,114460.0,114450.0,2.7678268]
[1758503402415,0.01364,114460.0,114450.0,2.7682268]
[1758503402610,0.08221331,114460.0,114450.0,2.7681868]
[1758503402810,0.01364,114460.0,114450.0,2.7681868]
[1758503403012,0.01364,114460.0,114450.0,2.7677868]
[1758503403211,0.01364,114460.0,114450.0,2.7681868]
[1758503403512,0.01364,114460.0,114450.0,2.7691868]
[1758503404226,0.01364,114460.0,114450.0,2.7681868]
[1758503404517,0.01664,114460.0,114450.0,2.7681868]
[1758503404720,0.01664,114460.0,114450.0,2.7681918]
[1758503405813,0.28857,114460.0,114450.0,0.0004]
[1758503406012,0.03557,114440.0,114430.0,0.38313]
[1758503406214,0.1059576,114440.0,114430.0,1.22423]
[1758503406417,0.03557,114440.0,114430.0,1.22343]
[1758503406715,0.03557,114440.0,114430.0,1.22383]
[1758503407319,0.03557,114440.0,114430.0,1.311157]
[1758503408922,0.04672696,114440.0,114430.0,1.311157]
[1758503410925,0.11721927,114440.0,114430.0,1.311157]
[1758503414520,0.33499152,114440.0,114430.0,1.52892925]
[1758503415318,0.33499152,114440.0,114430.0,1.311157]
[1758503415519,0.33499152,114440.0,114430.0,1.52892925]
[1758503417327,0.11721927,114440.0,114430.0,1.52892925]
[1758503417526,0.33499152,114440.0,114430.0,1.52892925]
[1758503417925,0.11721927,114440.0,114430.0,1.311157]
[1758503418118,0.33499152,114440.0,114430.0,1.52892925]
[1758503418518,0.33499152,114440.0,114430.0,0.68852925]
[1758503418724,0.33499152,114440.0,114430.0,1.52876925]
[1758503419032,0.33499152,114440.0,114430.0,0.60120225]
[1758503419215,0.55276377,114440.0,114430.0,1.310997]
[1758503419424,0.55276377,114440.0,114430.0,1.52836925]
[1758503419617,0.55276377,114440.0,114430.0,1.310997]
[1758503419923,0.33499152,114440.0,114430.0,1.52876925]
[1758503420129,0.11721927,114440.0,114430.0,1.52876925]
[1758503420319,0.09528927,114440.0,114430.0,1.52876925]
[1758503421029,0.08164927,114440.0,114430.0,1.7465415]
[1758503421326,0.20053956,114450.0,114440.0,0.1090894]
[1758503421523,0.41831181,114450.0,114440.0,0.1090894]
[1758503421725,0.41831181,114450.0,114440.0,0.5446339]
[1758503421929,0.42906683,114450.0,114440.0,0.9492894]
[1758503422127,0.42906683,114450.0,114440.0,1.16706165]
[1758503422728,0.43106683,114450.0,114440.0,1.16706165]
[1758503423024,0.21329458,114450.0,114440.0,1.3848339]
[1758503423226,0.43106683,114450.0,114440.0,1.3848339]
[1758503424030,0.21329458,114450.0,114440.0,0.9492894]
[1758503424233,0.21329458,114450.0,114440.0,1.3848339]
[1758503424234,0.43106683,114450.0,114440.0,1.3848339]
[1758503424528,0.03339458,114450.0,114440.0,1.6472839]
[1758503424724,0.1024768,114450.0,114440.0,1.6472839]
[1758503424924,0.03339458,114450.0,114440.0,1.6472839]
[1758503426833,0.02263956,114450.0,114440.0,1.6472839]
[1758503427025,0.002,114450.0,114440.0,1.86505615]
[1758503428123,0.002,114450.0,114440.0,1.86481615]
[1758503428319,0.002,114450.0,114440.0,1.6470439]
[1758503428528,0.002,114450.0,114440.0,1.86481615]
[1758503429626,0.01097333,114460.0,114450.0,0.1092018]
[1758503429825,0.26247398,114480.0,114470.0,0.1091865]
[1758503430033,0.26247398,114480.0,114470.0,1.16683875]
[1758503430333,0.02050661,114480.0,114470.0,1.384611]
[1758503430633,0.02050661,114480.0,114470.0,1.634611]
[1758503431034,0.00969173,114480.0,114470.0,1.634611]
[1758503431631,0.00969185,114480.0,114470.0,1.634491]
[1758503431829,0.00969185,114480.0,114470.0,0.794731]
[1758503432034,0.00969185,114480.0,114470.0,1.634491]
[1758503432334,0.01169185,114480.0,114470.0,1.634491]
[1758503433735,0.01169185,114480.0,114470.0,1.634411]
[1758503434630,0.01169185,114480.0,114470.0,1.85218325]
[1758503434829,0.01169185,114480.0,114470.0,1.634411]
[1758503435133,0.01169185,114480.0,114470.0,1.640411]
[1758503435338,0.01169185,114480.0,114470.0,1.85818325]
[1758503435533,0.01169185,114480.0,114470.0,1.640411]
[1758503435929,0.01169185,114480.0,114470.0,1.640291]
[1758503436735,0.01169185,114480.0,114470.0,1.640211]
[1758503437833,0.01169185,114480.0,114470.0,1.640131]
[1758503438438,5e-08,114480.0,114470.0,1.85790325]
[1758503439140,5e-08,114480.0,114470.0,1.85782325]
[1758503439339,5e-08,114480.0,114470.0,1.60782325]
[1758503439840,5e-08,114480.0,114470.0,0.76850325]
[1758503440140,5e-08,114480.0,114470.0,1.390051]
[1758503440342,0.01059086,114500.0,114490.0,0.1216213]
[1758503440640,0.32270375,114520.0,114510.0,0.109156]
[1758503440935,0.32270375,114520.0,114510.0,1.16616825]
[1758503441138,0.1049315,114520.0,114510.0,1.16616825]
[1758503441744,0.11583586,114520.0,114510.0,1.16616825]
[1758503441932,0.12383586,114520.0,114510.0,1.16616825]
[1758503443746,0.13083586,114520.0,114510.0,0.948236]
[1758503444043,0.13083586,114520.0,114510.0,1.16596825]
[1758503444044,0.34860811,114520.0,114510.0,1.16596825]
[1758503444639,0.13083586,114520.0,114510.0,0.32692825]
[1758503444831,0.13083586,114520.0,114510.0,1.16596825]
[1758503445037,0.34860811,114520.0,114510.0,1.16596825]
[1758503445443,0.56638036,114520.0,114510.0,0.948156]
[1758503445634,0.56638036,114520.0,114510.0,0.109156]
[1758503445834,0.56638036,114520.0,114510.0,0.948116]
[1758503446136,0.56638036,114520.0,114510.0,0.948516]
[1758503446426,0.13083586,114520.0,114510.0,0.948516]
[1758503446642,0.56638036,114520.0,114510.0,0.948516]
[1758503446942,0.34860811,114520.0,114510.0,0.948516]
[1758503447443,0.34860811,114520.0,114510.0,1.16628825]
[1758503447746,0.13083586,114520.0,114510.0,1.16628825]
[1758503448451,0.81638036,114520.0,114510.0,0.926466]
[1758503449546,0.81638036,114520.0,114510.0,0.087666]
[1758503449747,0.38083586,114520.0,114510.0,0.087666]
[1758503449955,0.81638036,114520.0,114510.0,0.404186]
[1758503450252,0.81638036,114520.0,114510.0,0.0004]
[1758503450749,0.83875906,114520.0,114510.0,0.13616]
[1758503450946,0.03571,114500.0,114490.0,0.1100669]
[1758503451145,0.4712545,114500.0,114490.0,0.5498469]
[1758503451547,0.03571,114500.0,114490.0,0.46177]
[1758503451743,0.25348225,114500.0,114490.0,0.67994225]
[1758503451945,0.4712545,114500.0,114490.0,0.02229]
[1758503452248,0.01377,114480.0,114450.0,0.0890056]
[1758503452555,0.25348225,114480.0,114470.0,0.02189]
[1758503453253,0.27587947,114480.0,114470.0,0.02189]
[1758503453453,0.25348225,114480.0,114470.0,0.02189]
[1758503453753,0.25348225,114480.0,114470.0,0.23966225]
[1758503454049,0.34594833,114480.0,114470.0,0.23966225]
[1758503454456,0.34694833,114480.0,114470.0,0.23966225]
[1758503454847,0.34694833,114480.0,114470.0,0.24566225]
[1758503455046,0.56472058,114480.0,114470.0,0.22377225]
[1758503455246,0.12917608,114480.0,114470.0,1.07924225]
[1758503455454,0.34796455,114480.0,114470.0,1.07924225]
[1758503455640,0.34796455,114480.0,114470.0,1.07964225]
[1758503455953,0.35096455,114480.0,114470.0,1.07964225]
[1758503456148,0.35096455,114480.0,114470.0,0.86187]
[1758503456349,0.35096455,114480.0,114470.0,1.07964225]
[1758503456650,0.34696455,114480.0,114470.0,0.86187]
[1758503456853,0.35296455,114480.0,114470.0,1.07964225]
[1758503457048,0.35196455,114480.0,114470.0,1.07964225]
[1758503457248,0.35196455,114480.0,114470.0,0.86187]
[1758503457249,0.35596455,114480.0,114470.0,0.86187]
[1758503457448,0.35596455,114480.0,114470.0,1.07964225]
[1758503459651,0.5737368,114480.0,114470.0,0.24096225]
[1758503459853,0.5737368,114480.0,114470.0,0.83908]
[1758503460254,0.1381923,114480.0,114470.0,0.86187]
[1758503460459,0.5737368,114480.0,114470.0,0.86187]
[1758503460960,0.35596455,114480.0,114470.0,0.86187]
[1758503461157,0.35596455,114480.0,114470.0,1.07964225]
[1758503461357,0.35596455,114480.0,114470.0,1.16693905]
[1758503461755,0.35596455,114480.0,114470.0,1.07964225]
[1758503462261,0.1381923,114480.0,114470.0,1.16693915]
[1758503463565,0.1321923,114480.0,114470.0,1.16693915]
[1758503463764,0.1331923,114480.0,114470.0,0.9491669]
[1758503464062,0.1331923,114480.0,114470.0,1.16693915]
[1758503464455,0.35096455,114480.0,114470.0,1.16693915]
[1758503466062,0.1331923,114480.0,114470.0,1.16693915]
[1758503466263,0.35096455,114480.0,114470.0,1.16693915]
[1758503466961,0.49596455,114480.0,114470.0,1.16693915]
[1758503467159,0.2781923,114480.0,114470.0,1.16693915]
[1758503467463,0.49596455,114480.0,114470.0,1.16693915]
[1758503468362,0.49596455,114480.0,114470.0,0.9491669]
[1758503468562,0.49596455,114480.0,114470.0,1.16693915]
[1758503469664,0.2781923,114480.0,114470.0,1.16693915]
[1758503469864,0.25577967,114480.0,114470.0,1.16693915]
[1758503470067,0.47355192,114480.0,114470.0,1.16693915]
[1758503470459,0.4960175,114480.0,114470.0,0.02319]
[1758503470655,0.71378975,114480.0,114470.0,0.71552]
[1758503470861,0.71378975,114480.0,114470.0,0.93329225]
[1758503471785,0.27824525,114480.0,114470.0,1.02058915]
[1758503471960,0.71378975,114480.0,114470.0,0.8256869]
[1758503472156,0.71378975,114480.0,114470.0,1.04345915]
[1758503472356,0.69132417,114480.0,114470.0,0.1105669]
[1758503472561,0.69132417,114480.0,114470.0,0.83884]
[1758503472766,0.71378886,114480.0,114470.0,0.83884]
[1758503473271,0.71378886,114480.0,114470.0,0.83844]
[1758503473476,0.0363,114460.0,114450.0,0.32875015]
[1758503473673,0.0363,114460.0,114450.0,1.16719015]
[1758503473674,0.25407225,114460.0,114450.0,1.16719015]
[1758503473865,0.25407225,114460.0,114450.0,1.16639015]
[1758503474066,0.25407225,114460.0,114450.0,0.32795015]
[1758503474261,0.25407225,114460.0,114450.0,0.86131]
[1758503474262,0.4718445,114460.0,114450.0,0.86131]
[1758503474469,0.01328,114450.0,114440.0,1.84056]
[1758503474661,0.24198762,114450.0,114440.0,2.67816]
[1758503474865,0.24198762,114450.0,114440.0,2.67856]
[1758503475066,0.24198762,114450.0,114440.0,2.67816]
[1758503475270,0.24198762,114450.0,114440.0,2.67856]
[1758503475469,0.23598762,114450.0,114440.0,2.67856]
[1758503476075,0.02221794,114450.0,114440.0,2.67856]
[1758503476673,0.23998762,114450.0,114440.0,2.67856]
[1758503477068,0.38898762,114450.0,114440.0,2.67856]
[1758503477673,0.39098762,114450.0,114440.0,2.67856]
[1758503478377,0.39098762,114450.0,114440.0,2.7658798]
[1758503478579,0.17321794,114450.0,114440.0,2.7658798]
[1758503478874,0.39098762,114450.0,114440.0,2.7658798]
[1758503479176,0.17321794,114450.0,114440.0,2.7658798]
[1758503479665,0.02821794,114450.0,114440.0,2.98364948]
[1758503480862,0.02093794,114450.0,114440.0,3.23964948]
[1758503481476,0.01493794,114450.0,114440.0,3.23964948]
[1758503481672,0.01893794,114450.0,114440.0,3.23964948]
[1758503482872,0.01893794,114450.0,114440.0,3.23956948]
[1758503483175,0.01793794,114450.0,114440.0,2.40124948]
[1758503483376,0.01393794,114450.0,114440.0,3.23956948]
[1758503484373,0.01393794,114450.0,114440.0,2.40124948]
[1758503484573,0.01393794,114450.0,114440.0,3.23948948]
[1758503486176,0.003,114450.0,114440.0,3.45725916]
[1758503486984,1e-07,114450.0,114440.0,3.45725916]
[1758503487682,0.01020231,114460.0,114450.0,0.1208628]
[1758503487983,0.10581967,114480.0,114470.0,0.1083975]
[1758503488177,0.10581967,114480.0,114470.0,1.16432718]
[1758503488484,0.10581967,114480.0,114470.0,1.16428718]
[1758503488883,0.11612031,114480.0,114470.0,1.16428718]
[1758503489881,0.09414031,114480.0,114470.0,1.16428718]
[1758503490083,0.08037031,114480.0,114470.0,1.16428718]
[1758503490284,0.05547633,114490.0,114480.0,0.1083899]
[1758503490578,0.05547633,114490.0,114480.0,0.32615958]
[1758503490780,0.05547633,114490.0,114480.0,1.16419958]
[1758503490978,0.05547633,114490.0,114480.0,0.32615958]
[1758503491182,0.01316,114480.0,114470.0,0.0211]
[1758503491386,0.01316,114480.0,114470.0,0.9463975]
[1758503491387,0.25290968,114480.0,114470.0,0.9463975]
[1758503491870,0.32261626,114480.0,114470.0,0.9463975]
[1758503492286,0.10484658,114480.0,114470.0,0.85902]
[1758503492484,0.57561626,114480.0,114470.0,0.85902]
[1758503492783,0.57561626,114480.0,114470.0,0.9467175]
[1758503492983,0.57561626,114480.0,114470.0,0.9256175]
[1758503493184,0.57561626,114480.0,114470.0,0.1087975]
[1758503493381,0.57561626,114480.0,114470.0,0.1083975]
[1758503493679,0.58061626,114480.0,114470.0,0.9231975]
[1758503493890,0.58061626,114480.0,114470.0,0.1087975]
[1758503494074,0.58061626,114480.0,114470.0,0.85938]
[1758503494285,0.58261626,114480.0,114470.0,0.9466775]
[1758503494477,0.58261626,114480.0,114470.0,0.83824]
[1758503494879,0.58661626,114480.0,114470.0,0.83824]
[1758503495280,0.58661626,114480.0,114470.0,0.0004]
[1758503495480,0.58661626,114480.0,114470.0,0.8378]
[1758503495481,0.39129743,114480.0,114470.0,0.8378]
[1758503495680,0.60906711,114480.0,114470.0,0.9465975]
[1758503497686,0.75406711,114480.0,114470.0,0.9465975]
[1758503497996,0.75406711,114480.0,114470.0,0.0215]
[1758503498192,0.53629743,114480.0,114470.0,1.16424718]
[1758503498578,0.53629743,114480.0,114470.0,0.9464775]
[1758503499376,0.48161626,114480.0,114470.0,0.0215]
[1758503499582,0.48161626,114480.0,114470.0,0.85918]
[1758503499784,0.50408313,114480.0,114470.0,0.9464774]
[1758503500088,0.48161626,114480.0,114470.0,0.85914]
[1758503500780,0.48161626,114480.0,114470.0,0.8591]
[1758503501183,0.48161626,114480.0,114470.0,0.9463974]
[1758503501888,0.48161626,114480.0,114470.0,0.8591]
[1758503502093,0.48161626,114480.0,114470.0,0.9463974]
[1758503502490,0.50408962,114480.0,114470.0,0.9463974]
[1758503503195,0.50408962,114480.0,114470.0,0.838]
[1758503503390,0.9718593,114480.0,114470.0,0.0004]
[1758503503584,0.9718593,114480.0,114440.0,1.83986]
[1758503503585,0.01316,114450.0,114440.0,1.9271804]
[1758503503786,0.23092968,114450.0,114440.0,2.7667204]
[1758503504091,0.01316,114450.0,114440.0,2.7671204]
[1758503504287,0.18014,114460.0,114450.0,0.1084127]
[1758503504488,0.20263018,114460.0,114450.0,0.1084127]
[1758503505395,0.42039986,114460.0,114450.0,0.1084127]
[1758503505779,0.42039986,114460.0,114450.0,0.0211]
[1758503505986,0.42039986,114460.0,114450.0,0.1084127]
[1758503506186,0.20263018,114460.0,114450.0,0.1084127]
[1758503506390,0.20463018,114460.0,114450.0,0.1084127]
[1758503506590,0.06163018,114460.0,114450.0,0.1084127]
[1758503507090,0.05963018,114460.0,114450.0,0.1084127]
[1758503507291,0.06163018,114460.0,114450.0,0.1084127]
[1758503507794,0.06863018,114460.0,114450.0,0.1084127]
[1758503507993,0.07163018,114460.0,114450.0,0.1084127]
[1758503509493,0.06263018,114460.0,114450.0,0.1084127]
[1758503509696,0.06763018,114460.0,114450.0,0.1084127]
[1758503510189,0.06963018,114460.0,114450.0,0.1084127]
[1758503510798,0.06563018,114460.0,114450.0,0.1084127]
[1758503510997,0.06763018,114460.0,114450.0,0.1084127]
[1758503511396,0.06763018,114460.0,114450.0,0.32618238]
[1758503511896,0.06963018,114460.0,114450.0,0.32618238]
[1758503512499,0.04714,114460.0,114450.0,0.32618238]
[1758503512899,0.04714,114460.0,114450.0,0.1084127]
[1758503513091,0.04714,114460.0,114450.0,0.32618238]
[1758503513291,0.04014,114460.0,114450.0,0.1084127]
[1758503513487,0.04314,114460.0,114450.0,0.32618238]
[1758503514098,0.008,114460.0,114450.0,0.80640206]
[1758503514692,0.03055,114460.0,114450.0,0.58863238]
[1758503514998,0.04372,114460.0,114450.0,0.57618238]
[1758503515798,0.04372,114460.0,114450.0,1.41374238]
[1758503516301,0.003,114460.0,114450.0,1.41414238]
[1758503516599,0.147,114460.0,114450.0,1.41414238]
[1758503516806,0.149,114460.0,114450.0,1.41414238]
[1758503517000,0.152,114460.0,114450.0,1.41414238]
[1758503517508,0.153,114460.0,114450.0,1.41414238]
[1758503518000,0.16617,114460.0,114450.0,0.3588127]
[1758503518203,0.18872,114460.0,114450.0,1.41414238]
[1758503520303,0.153,114460.0,114450.0,1.41414238]
[1758503520500,0.18872,114460.0,114450.0,1.41410238]
[1758503522503,1e-07,114460.0,114450.0,1.63187206]
[1758503522700,1e-07,114460.0,114450.0,1.70992311]
[1758503522896,0.06970658,114480.0,114470.0,0.1144075]
[1758503523104,0.06610492,114490.0,114480.0,0.1083998]
[1758503523305,0.06610492,114490.0,114480.0,0.32616948]
[1758503524501,0.07110492,114490.0,114480.0,0.32616948]
[1758503524704,0.07110492,114490.0,114480.0,0.1083998]
[1758503524898,0.07110492,114490.0,114480.0,0.1087998]
[1758503525311,0.6838746,114490.0,114480.0,0.0004]
[1758503525500,0.6838746,114490.0,114480.0,0.83744]
[1758503525707,0.6898746,114490.0,114480.0,0.83784]
[1758503526010,0.6898746,114490.0,114480.0,0.9462398]